Cogmind - Beta 16.1 *** ADVENTURER MODE // 2026.02.18 @ 14:55:37 Player: liability Result: Destroyed by 0S-8XO(z) with Makeshift Sword Performance ------------- Evolutions (3) 1500 Regions Visited (9) 1800 Robots Destroyed (107) 535 Value Destroyed (2848) 2848 Prototype IDs (25) 500 Alien Tech Used (1) 200 Bonus (660) 660 TOTAL SCORE: 8043 Bonus ------- Follower Combat Kills 60 Aligned with FarCom 300 Met Imprinter 300 Cogmind --------- Core Integrity 0/700 Matter 7/300 Energy 94/100 System Corruption 2% Temperature Cool (0) Movement Core (350) Ox6 Location -7/Zion Parts ------- > --- POWER (1) -------- (None) > --- PROPULSION (3) --- (None) > --- UTILITY (6) ------ Large Storage Unit Machine Analyzer Improved Signal Interpreter Launcher Guidance Computer > --- WEAPON (4) ------- (None) > --- INVENTORY (15) --- Aluminum Leg Titanium Leg Improved Titanium Leg Makeshift Leg Heat Sink Improved Heat Sink Reactive Plating Mini Grenade Launcher Flamer Peak State ------------ > --- POWER ------------ Light Ion Engine > --- PROPULSION ------- Improved Titanium Leg Improved Titanium Leg > --- UTILITY ---------- Large Storage Unit Sensor Array Medium Reactive Plating Thief Drone Bay > --- WEAPON ----------- YOLO Cannon Flak Cannon Rocket Launcher > --- INVENTORY -------- Nuclear Core Nuclear Core Light Fission Core Improved Titanium Leg Improved Titanium Leg Heat Sink Heavy Assault Cannon Rocket Launcher Plasma Cutter [Rating: 50] Favorites ----------- Power Improved Deuterium Engine Engine Improved Deuterium Engine Propulsion Improved Titanium Leg Leg Improved Titanium Leg Utility Large Storage Unit Device Sensor Array Storage Large Storage Unit Processor Machine Analyzer Protection Medium Reactive Plating Weapon Rocket Launcher Energy Gun Particle Gun Energy Cannon YOLO Cannon Ballistic Gun Light Assault Rifle Ballistic Cannon Heavy Assault Cannon Launcher Rocket Launcher Special Weapon Plasma Cutter Build | -11 -10 -10 -10 -9 -8 -7 -7 -7 -7 ------- Run | Yrd Mat Min Exi Min Mat Fac Low Low Zio Slots Evolved 6 | . . . . . 4 2 . . . Power . | . . . . . . . . . . Propulsion 1 | . . . . . . 1 . . . Utility 3 | . . . . . 2 1 . . . Weapon 2 | . . . . . 2 . . . . Parts Attached 48 | 6 8 9 1 4 13 2 3 . 2 Power 8 | 1 1 1 . 2 2 1 . . . Engine 8 | 1 1 1 . 2 2 1 . . . Core . | . . . . . . . . . . Reactor . | . . . . . . . . . . Propulsion 15 | 2 . 5 . 2 4 1 . . 1 Treads . | . . . . . . . . . . Leg 15 | 2 . 5 . 2 4 1 . . 1 Wheel . | . . . . . . . . . . Hover . | . . . . . . . . . . Flight . | . . . . . . . . . . Utility 11 | 1 5 1 . . 3 . 1 . . Device 3 | . 2 1 . . . . . . . Storage 3 | 1 2 . . . . . . . . Processor 4 | . 1 . . . 2 . 1 . . Hackware . | . . . . . . . . . . Protection 1 | . . . . . 1 . . . . Artifact . | . . . . . . . . . . Weapon 14 | 2 2 2 1 . 4 . 2 . 1 Energy Gun 1 | . 1 . . . . . . . . Energy Cannon 1 | . . . 1 . . . . . . Ballistic Gun 4 | 2 . . . . 1 . . . 1 Ballistic Cannon 4 | . 1 . . . 2 . 1 . . Launcher 3 | . . 2 . . 1 . . . . Special Weapon 1 | . . . . . . . 1 . . Impact Weapon . | . . . . . . . . . . Slashing Weapon . | . . . . . . . . . . Piercing Weapon . | . . . . . . . . . . Special Melee Weapon . | . . . . . . . . . . Unidentified Prototypes 3 | . . 1 . . 1 . 1 . . Parts Lost 18 | . . 1 . 3 7 . . . 7 Power 5 | . . 1 . 1 2 . . . 1 Propulsion 4 | . . . . 2 1 . . . 1 Utility 2 | . . . . . 1 . . . 1 Weapon 7 | . . . . . 3 . . . 4 Highest Loss Streak 5 | . . 1 . 2 5 . . . 3 To Critical Strikes 1 | . . . . . . . . . 1 Average Backups 8 | . 6 9 12 11 6 5 8 10 10 Power 1 | . . 1 3 3 1 . . . . Propulsion 2 | . 1 2 2 2 1 3 3 4 4 Utility 1 | . . 1 1 1 1 1 2 2 3 Weapon 2 | . 2 3 4 3 . . 2 3 2 Tool/Special . | . . . . . . . . . . Unused Backups 22 | . 1 4 . 1 7 1 . . 8 Power 7 | . 1 2 . . 3 1 . . . Propulsion 7 | . . 1 . . 3 . . . 3 Utility 4 | . . . . . 1 . . . 3 Weapon 4 | . . 1 . 1 . . . . 2 Tool/Special . | . . . . . . . . . . Average Slot Usage (%) 91 | . 98 99 98 84 82 91 90 92 85 Engine 10 | . 14 13 14 13 7 7 7 7 6 Leg 24 | . 27 28 28 27 17 23 21 21 19 Device 9 | . 1 13 14 14 12 7 7 7 6 Storage 10 | . 14 14 14 14 9 7 7 7 7 Processor 9 | . 10 . . . 8 15 18 21 21 Protection 2 | . . . . . 2 6 7 7 4 Energy Cannon 2 | . . . . 14 3 . . . . Ballistic Gun 4 | . 14 9 . . 4 7 2 . 2 Ballistic Cannon 7 | . 8 9 . . 8 7 11 14 12 Launcher 7 | . . 9 26 . 8 7 6 7 4 Peak Build Rating 50 | 6 10 24 41 41 50 39 45 45 45 Average Rating 30 | 4 8 19 26 35 33 38 42 45 41 On Entrance 27 | . 6 9 24 41 33 31 39 45 45 Avg Prop Armor Cover (%) . | . . . . . . . . . . Naked Turns . | . . . . . . . . . . Heaviest Build 76 | 11 32 41 51 51 76 70 73 73 73 Greatest Support 57 | 20 20 30 30 30 40 57 57 57 57 Greatest Overweight (x) 7 | 3 1 1 1 2 2 1 1 1 7 Average Overweight (x) 1 | 1 . 1 1 1 1 1 1 1 . Largest Inventory Capacity 15 | 8 15 15 15 15 15 15 15 15 15 Average Capacity 14 | 7 13 15 15 15 15 15 15 15 15 Most Carried 15 | . 8 13 14 15 12 7 10 11 11 Average Carried 9 | . 6 9 12 13 6 5 8 10 10 Final Capacity 15 | 8 15 15 15 15 15 15 15 15 15 Final Carried 14 | . 8 9 14 13 8 7 10 11 9 Class Distribution -------------------- 52% | Mutant 46% | Skirmisher Dominant Class ---------------- Mutant | -10/Materials Mutant | -10/Mines Mutant | -10/Exiles Mutant | -9/Mines Skirmisher | -8/Materials Skirmisher | -7/Factory Skirmisher | -7/Lower Caves Skirmisher | -7/Lower Caves Skirmisher | -7/Zion Resources | -11 -10 -10 -10 -9 -8 -7 -7 -7 -7 ----------- Run | Yrd Mat Min Exi Min Mat Fac Low Low Zio Matter Collected 2258 | 245 206 266 . 94 541 71 393 144 298 Remotely . | . . . . . . . . . . Salvage Created 2654 | . 504 260 . 108 1121 82 111 105 363 Parts 153 | . 42 26 . 3 44 4 6 4 24 Haulers Intercepted 4 | . 2 . . . 2 . . . . Recyclers Shooed 1 | . . . . . 1 . . . . Parts Field Recycled . | . . . . . . . . . . Retrieved Matter . | . . . . . . . . . . Parts Self-Destructed 6 | . . . . . . . 2 4 . Prevented . | . . . . . . . . . . Parts Restored . | . . . . . . . . . . Kills | -11 -10 -10 -10 -9 -8 -7 -7 -7 -7 ------- Run | Yrd Mat Min Exi Min Mat Fac Low Low Zio Combat Hostiles Destroyed 79 | . 13 11 . 15 25 1 5 4 5 Guns 16 | . 12 3 . . . . . . 1 Cannons 36 | . . 8 . 8 11 1 3 2 3 AOE 24 | . 1 . . 7 11 . 2 2 1 Classes Destroyed 15 | . 5 2 . 3 3 . 1 . 1 Worker 3 | . 2 . . . 1 . . . . Builder 7 | . . . . . 7 . . . . Tunneler 2 | . . 1 . 1 . . . . . Hauler 4 | . 2 . . . 2 . . . . Recycler 4 | . . 1 . . 3 . . . . Watcher 5 | . 3 . . . 1 1 . . . Swarmer 18 | . 9 9 . . . . . . . Grunt 32 | . 4 2 . . 19 . 4 3 . Duelist 2 | . . . . . 1 . . 1 . Sentry 6 | . . . . 1 4 1 . . . Demolisher 1 | . . . . 1 . . . . . Hunter 1 | . . . . . 1 . . . . Zionite 16 | . . . . . . . . . 16 Assembled 13 | . . . . 13 . . . . . Mutant 6 | . . . . . . . 1 . 5 Best Kill Streak 9 | . 7 3 . 7 5 2 4 4 9 Combat Bots Only 7 | . 4 3 . 7 4 1 4 4 4 Max Kills in Single Turn 4 | . 4 2 . 4 4 1 1 2 2 Gunslinging 1 | . 1 . . . . . . . . Exploded 3 | . 1 . . 3 1 . 1 2 1 Melee . | . . . . . . . . . . Uniques/NPCs Destroyed . | . . . . . . . . . . Combat | -11 -10 -10 -10 -9 -8 -7 -7 -7 -7 -------- Run | Yrd Mat Min Exi Min Mat Fac Low Low Zio Hostile Shots Fired 389 | . 45 27 . 23 81 . 28 10 175 Missed 125 | . 13 6 . 6 26 . 10 1 63 Hits 264 | . 32 21 . 17 55 . 18 9 112 Melee 28 | . . . . 4 . . . . 24 Projectile 236 | . 32 21 . 13 55 . 18 9 88 AOE 2 | . . . . 2 . . . . . Critical Strikes 15 | . . . . . 2 . . . 13 Part Disruptions 1 | . 1 . . . . . . . . Damage Taken 3726 | . 234 389 . 447 720 . 210 110 1616 Core 947 | . 60 111 . 13 43 . 18 . 702 Absorbed by Shields . | . . . . . . . . . . Ignored by Resistances 1073 | . 80 56 . 121 235 . 68 33 480 Core Remaining (%) 56 | 100 . . . 26 42 . . . . Volleys Fired 159 | . 31 23 . 15 31 2 13 5 39 Largest 3 | . 2 2 . 1 3 3 3 3 3 Hottest 170 | . 85 66 . 100 170 106 123 123 123 Shots Fired 346 | . 59 46 . 15 75 5 37 12 97 Gun 130 | . 57 17 . . 14 2 5 . 35 Cannon 160 | . 2 17 . 15 37 2 21 10 56 Launcher 55 | . . 12 . . 24 1 10 2 6 Special 1 | . . . . . . . 1 . . Kinetic 243 | . 36 34 . . 42 4 26 10 91 Thermal 48 | . 23 . . 15 9 . 1 . . Explosive 55 | . . 12 . . 24 1 10 2 6 Electromagnetic . | . . . . . . . . . . Robot Hit Streak 28 | . 15 9 . 3 28 4 16 5 12 Robot Miss Streak 6 | . 3 4 . 2 1 1 1 1 6 Penetration Max 1 | . . . . . . . . . 1 Secondary Targets 2 | . 2 . . . . . . . . Max Gunslinging Chain 1 | . 1 . . . . . . . . Shots Hit Robots 206 | . 38 22 . 8 46 4 20 8 60 Core Hits 188 | . 26 14 . 13 65 3 10 6 51 Critical Kills 3 | . . . . . 3 . . . . Critical Parts Destroyed . | . . . . . . . . . . Critical Strikes 12 | . . 2 . . 4 . 3 . 3 Meltdown 3 | . . . . . 3 . . . . Blast 9 | . . 2 . . 1 . 3 . 3 Melee Attacks . | . . . . . . . . . . Impact . | . . . . . . . . . . Slashing . | . . . . . . . . . . Piercing . | . . . . . . . . . . Sneak Attacks . | . . . . . . . . . . Combat Hostiles . | . . . . . . . . . . Follow-up Attacks . | . . . . . . . . . . Damage Inflicted 10680 | . 762 435 . 1797 4220 134 901 471 1960 Guns 1197 | . 520 103 . . 148 33 18 . 375 Cannons 5352 | . 32 213 . 1088 1931 49 535 282 1222 Explosions 4062 | . 202 91 . 700 2121 52 348 189 359 Melee . | . . . . . . . . . . Ramming 69 | . 8 28 . 9 20 . . . 4 Kinetic 4268 | . 290 316 . . 1148 82 553 282 1597 Thermal 3735 | . 262 . . 1788 1685 . . . . Explosive 2406 | . . 91 . . 1367 52 348 189 359 Electromagnetic 202 | . 202 . . . . . . . . Impact . | . . . . . . . . . . Slashing . | . . . . . . . . . . Piercing . | . . . . . . . . . . Highest Corruption 2 | . . . . . . . . . 2 Average Corruption 1 | . . . . . . . . . 1 Corruption Purged . | . . . . . . . . . . Corruption Blocked . | . . . . . . . . . . Effects 4 | . . . . . . . . . 4 Matter Fused 1 | . . . . . . . . . 1 Energy Discharges 2 | . . . . . . . . . 2 Weapon Failures 1 | . . . . . . . . . 1 Overload Shots . | . . . . . . . . . . Overflow Damage 449 | . . . . 201 191 16 28 . 13 Projectiles 250 | . . . . 59 150 . 28 . 13 Explosions 199 | . . . . 142 41 16 . . . Melee . | . . . . . . . . . . Knockbacks 13 | . . 1 . . 3 . 2 1 6 Impact . | . . . . . . . . . . Kinetic 11 | . . . . . 2 . 2 1 6 Secondary 2 | . . 1 . . 1 . . . . Self-Inflicted Damage 321 | . 50 . . 174 72 . 24 . 1 Shots 8 | . 2 . . 4 1 . 1 . . Rammed 2 | . . . . . . . . . 2 Targets Rammed 17 | . 3 5 . 2 4 . . . 3 Kicked 15 | . 3 5 . 2 4 . . . 1 Crushed . | . . . . . . . . . . Highest Temperature 254 | . 135 33 . 68 116 39 187 201 254 Average Temperature 44 | . 46 10 . 25 37 15 57 119 51 Received Heat Transfer 1019 | . 12 9 . 9 450 . 125 81 333 Siege Activations . | . . . . . . . . . . Martial Activations . | . . . . . . . . . . Shielding Activations . | . . . . . . . . . . Robots Disrupted 1 | . 1 . . . . . . . . Combat Hostiles . | . . . . . . . . . . Robots Corrupted . | . . . . . . . . . . Combat Hostiles . | . . . . . . . . . . Parts Fried . | . . . . . . . . . . Impact Corruptions . | . . . . . . . . . . Robots Melted 3 | . . . . . 3 . . . . Combat Hostiles 3 | . . . . . 3 . . . . Parts Melted 4 | . . . . . 3 . . . 1 Heat Transferred 3929 | . 629 . . 1520 1780 . . . . Parts Sabotaged . | . . . . . . . . . . Parts Stolen . | . . . . . . . . . . Parts Stripped . | . . . . . . . . . . Power Chain Reactions 2 | . 2 . . . . . . . . Alert | -11 -10 -10 -10 -9 -8 -7 -7 -7 -7 ------- Run | Yrd Mat Min Exi Min Mat Fac Low Low Zio Maximum Alert Level 2 | . . . . . 2 . . . . Low Security (%) 83 | 100 100 100 . 100 33 100 . . . Level 1 16 | . . . . . 65 . . . . Level 2 . | . . . . . 1 . . . . Level 3 . | . . . . . . . . . . Level 4 . | . . . . . . . . . . Level 5 . | . . . . . . . . . . High Security . | . . . . . . . . . . Max Security . | . . . . . . . . . . Peak Influence 402 | . 199 115 . 52 402 107 . . . Initial 107 | . . . . . . 107 . . . Average 75 | . 50 24 . 6 213 71 . . . Influence Increases 2309 | . 391 416 . 248 1031 43 90 90 . Destroy 0b10 Robot/C 1240 | . 260 260 . 40 500 20 80 80 . Destroy 0b10 Robot/NC 125 | . 35 10 . 5 70 5 . . . Destroy Leader 248 | . 50 40 . 10 116 12 10 10 . Allied During Kill 6 | . . 6 . . . . . . . Trap Triggered on 0b10 10 | . . . . . 10 . . . . Successful Hack 24 | . 14 . . . 10 . . . . Disable Machine 63 | . 27 9 . 9 18 . . . . Destroy Structure 458 | . 5 61 . 139 247 6 . . . Lose Combat Pursuer 135 | . . 30 . 45 60 . . . . Influence Decreases 2309 | . 391 416 . 248 755 269 140 90 . Entered New Map 192 | . . . . . . 169 23 . . Time Decay 1971 | . 391 386 . 222 665 100 117 90 . Lost Part 106 | . . 10 . 26 70 . . . . Lost Ally 40 | . . 20 . . 20 . . . . Squads Dispatched 9 | . 1 1 . . 7 . . . . Investigation 1 | . 1 . . . . . . . . Extermination . | . . . . . . . . . . Reinforcement 4 | . . . . . 4 . . . . Assault 1 | . . 1 . . . . . . . Garrison 3 | . . . . . 3 . . . . Intercept . | . . . . . . . . . . Searches Triggered . | . . . . . . . . . . Construction Impeded 2 | . . . . . 2 . . . . Haulers Reinforced . | . . . . . . . . . . Active Scanning Responses . | . . . . . . . . . . Cargo Convoy Interrupts . | . . . . . . . . . . Stealth | -11 -10 -10 -10 -9 -8 -7 -7 -7 -7 --------- Run | Yrd Mat Min Exi Min Mat Fac Low Low Zio Distress Signals 3 | . 1 1 . 1 . . . . . Communications Jammed . | . . . . . . . . . . Distress Signals . | . . . . . . . . . . Times Spotted 129 | . 16 15 . 18 40 1 6 4 29 Peak Tracking Total 8 | . 3 4 . 2 6 1 4 4 8 Tactical Retreats 8 | . . 1 . 3 3 . . . 1 Traps | -11 -10 -10 -10 -9 -8 -7 -7 -7 -7 ------- Run | Yrd Mat Min Exi Min Mat Fac Low Low Zio Traps Triggered 3 | . 2 . . . 1 . . . . Indirectly . | . . . . . . . . . . Trap Hack Attempts . | . . . . . . . . . . Triggered . | . . . . . . . . . . Disarmed . | . . . . . . . . . . Reprogrammed . | . . . . . . . . . . Reused 2 | . . . . 1 1 . . . . Traps Extracted . | . . . . . . . . . . Installed 4 | . . . . 1 3 . . . . Triggered 1 | . . . . . 1 . . . . Most Traps Carried 3 | . . . . 3 3 . . . . Machines | -11 -10 -10 -10 -9 -8 -7 -7 -7 -7 ---------- Run | Yrd Mat Min Exi Min Mat Fac Low Low Zio Machines Disabled 12 | . 3 1 . 1 2 . 1 . 4 Max in Single Turn 3 | . 3 1 . 1 1 . 1 . 2 Machines Repaired . | . . . . . . . . . . Machines Dismantled 1 | . . . . . . . 1 . . Machines Sabotaged . | . . . . . . . . . . Overloaded Fab Kills . | . . . . . . . . . . Hacking | -11 -10 -10 -10 -9 -8 -7 -7 -7 -7 --------- Run | Yrd Mat Min Exi Min Mat Fac Low Low Zio Machines Accessed 15 | . 5 2 3 . 4 . 1 . . Terminals 7 | . 3 . . . 4 . . . . Fabricators . | . . . . . . . . . . Repair Stations . | . . . . . . . . . . Recycling Units 2 | . 2 . . . . . . . . Scanalyzers . | . . . . . . . . . . Garrison Access . | . . . . . . . . . . Total Hacks 49 | . 7 2 34 . 5 . 1 . . Successful 44 | . 4 2 34 . 3 . 1 . . Failed 5 | . 3 . . . 2 . . . . Catastrophic . | . . . . . . . . . . Database Lockouts . | . . . . . . . . . . Manual 9 | . 5 . 1 . 3 . . . . Terminals 9 | . 4 . . . 5 . . . . Fabricators . | . . . . . . . . . . Repair Stations . | . . . . . . . . . . Recycling Units 3 | . 3 . . . . . . . . Scanalyzers . | . . . . . . . . . . Garrison Access . | . . . . . . . . . . Terminal Hacks 39 | . . 2 34 . 2 . 1 . . Record 35 | . . . 33 . 2 . . . . Open Door 3 | . . 2 . . . . 1 . . Proto ID Catalog 1 | . . . 1 . . . . . . Fabricator Hacks . | . . . . . . . . . . Repair Station Hacks . | . . . . . . . . . . Recycling Unit Hacks 1 | . 1 . . . . . . . . Report Inventory 1 | . 1 . . . . . . . . Scanalyzer . | . . . . . . . . . . Garrison Access Hacks . | . . . . . . . . . . Unauthorized Hacks 4 | . 3 . . . 1 . . . . Terminals 4 | . 3 . . . 1 . . . . Track 3 | . 2 . . . 1 . . . . Assimilate 1 | . 1 . . . . . . . . Fabricators . | . . . . . . . . . . Repair Stations . | . . . . . . . . . . Recycling Units . | . . . . . . . . . . Scanalyzers . | . . . . . . . . . . Garrison Access . | . . . . . . . . . . Data Cores Recovered . | . . . . . . . . . . Used . | . . . . . . . . . . Hacking Detections 6 | . 4 . . . 2 . . . . Full Trace Events 1 | . 1 . . . . . . . . Feedback Events . | . . . . . . . . . . Feedback Blocked . | . . . . . . . . . . Robot Schematics Acquired 3 | . . . . . . . . . 3 Robots Built . | . . . . . . . . . . Authchips . | . . . . . . . . . . Time . | . . . . . . . . . . Total Robot Build Rating . | . . . . . . . . . . Part Schematics Acquired 14 | . . . . . . . . . 14 Parts Built . | . . . . . . . . . . Authchips . | . . . . . . . . . . Time . | . . . . . . . . . . Total Part Build Rating . | . . . . . . . . . . Part Studies Acquired . | . . . . . . . . . . Parts Repaired . | . . . . . . . . . . Time . | . . . . . . . . . . Parts Recycled . | . . . . . . . . . . Recycled Matter . | . . . . . . . . . . Retrieved Matter . | . . . . . . . . . . Retrieved Components . | . . . . . . . . . . Parts Scanalyzed . | . . . . . . . . . . Part Schematics Acquired . | . . . . . . . . . . Parts Damaged . | . . . . . . . . . . Bothacking | -11 -10 -10 -10 -9 -8 -7 -7 -7 -7 ------------ Run | Yrd Mat Min Exi Min Mat Fac Low Low Zio Used RIF Installer . | . . . . . . . . . . Robots Hacked . | . . . . . . . . . . Non-combat . | . . . . . . . . . . Combat . | . . . . . . . . . . Robot Hacks Applied . | . . . . . . . . . . Relay Couplers Released . | . . . . . . . . . . Fabnet Peak Effective % . | . . . . . . . . . . Robots Rewired . | . . . . . . . . . . Allies Hacked . | . . . . . . . . . . Hacks Repelled . | . . . . . . . . . . Allies | -11 -10 -10 -10 -9 -8 -7 -7 -7 -7 -------- Run | Yrd Mat Min Exi Min Mat Fac Low Low Zio Total Allies 1 | . . 1 . . . . . . . Largest Group 1 | . . 1 . . . . . . . Highest-Rated Group 31 | . . 31 . . . . . . . Highest-Rated Ally 31 | . . 31 . . . . . . . Total Orders 9 | . . 5 . 1 3 . . . . EXPLORE 7 | . . 3 . 1 3 . . . . RETURN 2 | . . 2 . . . . . . . Ally Attacks 74 | . . 21 . 38 15 . . . . Total Damage 394 | . . 125 . 211 58 . . . . Kills 6 | . . 2 . 4 . . . . . Allies Corrupted . | . . . . . . . . . . Allies Melted . | . . . . . . . . . . Intel | -11 -10 -10 -10 -9 -8 -7 -7 -7 -7 ------- Run | Yrd Mat Min Exi Min Mat Fac Low Low Zio Active Infowar (turns) 6481 | . 1359 124 . . 1522 203 1524 757 992 Sensors 5073 | . 158 88 . . 1483 203 1524 757 860 Structural 40 | . 40 . . . . . . . . T.N.C. 1197 | . 1161 36 . . . . . . . Machine Analysis 4282 | . . . . . 806 203 1524 757 992 Robot Analysis Total . | . . . . . . . . . . Derelict Logs Recovered 4 | . . 1 . 2 . . . 1 . Drone Launches 15 | . . 6 . 3 6 . . . . Drone Recoveries 12 | . . 6 . 3 3 . . . . Exploration | -11 -10 -10 -10 -9 -8 -7 -7 -7 -7 ------------- Run | Yrd Mat Min Exi Min Mat Fac Low Low Zio Turns Passed 10479 | 60 1500 1424 1122 1373 1524 203 1524 757 992 Spaces Moved 5000 | 37 813 696 587 618 617 95 727 356 454 Core 24 | 17 . . . . . . . . 7 Treads . | . . . . . . . . . . Legs 4976 | 20 813 696 587 618 617 95 727 356 447 Wheels . | . . . . . . . . . . Hover . | . . . . . . . . . . Flight . | . . . . . . . . . . Fastest Speed 50 | 50 120 190 190 190 200 200 200 200 130 Average Speed 193 | 140 169 190 190 208 216 200 200 200 186 Slowest Speed 400 | 200 190 190 190 260 270 200 200 200 400 Overloaded Moves . | . . . . . . . . . . Propulsion Burnouts . | . . . . . . . . . . Robots Hopped . | . . . . . . . . . . Potential Cave-ins 8 | . . 8 . . . . . . . Cave-ins Triggered 1 | . . 1 . . . . . . . Exploration Rate (%) 64 | 3 98 99 91 98 57 4 81 52 61 Regions Visited 9 Branch Regions 6 Pre-discovered Areas 3 | . . 1 1 1 . . . . . Known Exits Taken 5 | . . . . 1 1 1 1 1 . Unknown Exits Taken 4 | 1 1 1 1 . . . . . . Scrap Searched 7 | . . 2 . 2 . . 2 1 . Spaces Dug 185 | . . 148 . . . . 37 . . Terrain Destroyed 701 | . 3 148 . 192 260 6 79 11 2 Melee . | . . . . . . . . . . Projectile 23 | . . . . 5 7 . 8 1 2 AOE 678 | . 3 148 . 187 253 6 71 10 . Terrain Rammed . | . . . . . . . . . . Walls Destroyed . | . . . . . . . . . . Machines Disabled . | . . . . . . . . . . Actions | -11 -10 -10 -10 -9 -8 -7 -7 -7 -7 --------- Run | Yrd Mat Min Exi Min Mat Fac Low Low Zio Total 5390 | 42 880 750 595 660 714 104 753 389 503 Wait 46 | . . . . 10 7 . . 28 1 Move 4990 | 36 812 694 586 617 616 94 726 355 454 Hop . | . . . . . . . . . . Pick Up 66 | . 17 7 6 6 19 3 5 1 2 Fast Attach 6 | 6 . . . . . . . . . Attach 29 | . 2 1 1 3 14 2 2 . 4 Detach . | . . . . . . . . . . Swap 28 | . 8 10 . 1 4 1 4 . . Drop 38 | . 7 9 2 5 13 2 . . . Fire 159 | . 31 23 . 15 31 2 13 5 39 Melee . | . . . . . . . . . . Ram 2 | . . . . . . . . . 2 Kick 15 | . 3 5 . 2 4 . . . 1 Crush . | . . . . . . . . . . Escape Stasis 1 | . . 1 . . . . . . . Rewire 3 | . . . . . 3 . . . . Trap 4 | . . . . 1 3 . . . . Miscellaneous 3 | . . . . . . . 3 . . Route ------- -11/Scrapyard -10/Materials (discovered 4 exits: [*Mat x3] / *Min) -10/Mines (discovered 4 exits: [*Mat x2] / *Exi / [*Sub]) -10/Exiles (discovered 2 exits: [*Min x2]) -9/Mines (discovered 2 exits: *Mat x2) -8/Materials (discovered 3 exits: *Fac x3) -7/Factory -7/Lower Caves -7/Lower Caves (discovered 2 exits: *Fac / *Zio) -7/Zion History --------- Turn | Location | Event 27 | -11/Scrapyard | Discovered new exit (range 15) 61 | -11/Scrapyard | Entered Materials 215 | -10/Materials | Discovered new exit (range 10) 303 | -10/Materials | Build established: Mutant 370 | -10/Materials | Discovered new exit (range 9) 440 | -10/Materials | Discovered new exit (range 13) 623 | -10/Materials | Discovered new exit (range 16) 1561 | -10/Materials | Entered Mines 1568 | -10/Mines | Found the Drone Emporium 1579 | -10/Mines | Found Prototype Device 1597 | -10/Mines | Identified Thief Drone Bay 1640 | -10/Mines | Discovered new exit (range 8) 1816 | -10/Mines | Met a Derelict testing a Signal Generator 1824 | -10/Mines | Learned location of 1 exit from Materials 2050 | -10/Mines | Met a Derelict who couldn't figure out how to use a Trap Extractor 2227 | -10/Mines | Deemed a non-threat by the Exiles lab entrance 2227 | -10/Mines | Discovered new exit (range 5) 2442 | -10/Mines | Received a Rocket Launcher from a helpful Derelict 2627 | -10/Mines | Learned location of Storage (-9) 2681 | -10/Mines | Discovered new exit (range 10) 2776 | -10/Mines | Discovered new exit (range 5) 2892 | -10/Mines | Crushed by falling debris 2893 | -10/Mines | Core integrity fell below 50% 2985 | -10/Mines | Entered Exiles 3045 | -10/Exiles | Discovered new exit (range 14) 3101 | -10/Exiles | Met 8R-AWN 3127 | -10/Exiles | Met EX-HEX 3213 | -10/Exiles | Met EX-DEC 3250 | -10/Exiles | Visited The Gauntlet 3488 | -10/Exiles | Learned location of Zion (-7) 3543 | -10/Exiles | Discovered new exit (range 15) 3728 | -10/Exiles | Met EX-BIN 3750 | -10/Exiles | Aligned with FarCom system 3752 | -10/Exiles | Given EX-Vault access code 3876 | -10/Exiles | Opened EX-Vault 3889 | -10/Exiles | Found YOLO Cannon 3928 | -10/Exiles | Warned to stay clear of 0b10 Research branches 4107 | -10/Exiles | Left Exiles lab with YOLO Cannon 4107 | -10/Exiles | Entered Mines 4108 | -9/Mines | Assembled infested the area 4113 | -9/Mines | Assisted by a Guerilla fighting off Assembled 4231 | -9/Mines | Destroyed 7 combat bots 4258 | -9/Mines | Found a hidden stash of uninstalled traps 4359 | -9/Mines | Identified exit to Materials 5118 | -9/Mines | Discovered exit to Materials (range 9) 5480 | -9/Mines | Entered Materials 5480 | -8/Materials | Evolved 4 slots: Utility x2, Weapon x2 5481 | -8/Materials | Identified exit to Factory 5774 | -8/Materials | Build established: Skirmisher 5891 | -8/Materials | Garrison activated, responded to threat 5934 | -8/Materials | Discovered exit to Factory (range 17) 6098 | -8/Materials | YOLO Cannon suddenly exploded 6099 | -8/Materials | Core integrity fell below 50% 6135 | -8/Materials | Lost 5 parts (1p1n3w) 6598 | -8/Materials | Discovered exit to Factory (range 15) 7004 | -8/Materials | Entered Factory 7004 | -7/Factory | Evolved 2 slots: Propulsion x1, Utility x1 7163 | -7/Factory | Discovered new exit (range 16) 7191 | -7/Factory | Identified exit to Lower Caves 7207 | -7/Factory | Entered Lower Caves 7381 | -7/Lower Caves | Found Alien Artifact 7382 | -7/Lower Caves | Identified Core Expander 7382 | -7/Lower Caves | Installed Core Expander, added new Utility slot 7635 | -7/Lower Caves | Attacked by a delusional Derelict stockpiling parts 8130 | -7/Lower Caves | Discovered new exit (range 10) 8146 | -7/Lower Caves | Identified exit to Lower Caves 8653 | -7/Lower Caves | Attracted the attention of an 0b10 checkpoint 8731 | -7/Lower Caves | Entered another Lower Caves area 8855 | -7/Lower Caves | Discovered new exit (range 10) 8871 | -7/Lower Caves | Identified exit to Factory 9234 | -7/Lower Caves | Discovered new exit (range 15) 9260 | -7/Lower Caves | Identified exit to Zion 9488 | -7/Lower Caves | Entered Zion 10068 | -7/Zion | Rebuked by Imprinter 10098 | -7/Zion | Attempted to imprint without authorization 10098 | -7/Zion | Attacked by Zionites 10453 | -7/Zion | Lost 3 parts (1p1n1w) 10465 | -7/Zion | Core integrity fell below 50% 10475 | -7/Zion | Core integrity fell below 20% 10480 | -7/Zion | Destroyed by 0S-8XO(z) with Makeshift Sword Last Messages --------------- 10455_ UY-XNY(z) pulls a Mak. Shrapnel Gun out of the Twisted Machinery. 10458_ H8-XR0(z) destroyed. 10464_ WR-NTG(z) destroyed. 0S-8XO(z) bursts out of the Twisted Machinery. 10466_ Imp. Assault Rifle severed. 10468_ 0S-8XO(z) pulls a Mak. Sword out of the Twisted Machinery. 10470_ FH-B9B(z) heat short circuits Imp. Signal Interpreter. 10470_ Slammed into CR-A16. 10472_ FH-B9B(z) overheating. 10473_ Slammed into CR-A16. 10473_ Destabilizing: System corrupted (+1). 10474_ FH-B9B(z) overheating. 10476_ YQ-8DX(z) heat damages Imp. Carbon-fiber Leg, Mak. Leg, Mak. Laser. 10477_ FH-B9B(z) heat damages Mak. Power Source. 10477_ YQ-8DX(z) overheating. 10478_ FH-B9B(z) overheating. 10480_ FH-B9B(z) heat damages core (-2). 10480_ YQ-8DX(z) overheating. 10480_ FH-B9B(z) overheating. 10480_ Plasma Cutter destroyed. Map ----- +----------------------------------------------------+ | ???????????????????????????????????????????????? | | ???????????????????????????????????????????????? | | ???????????????????????????????????????????????? | | ???????????????????????????????????????????????? | | ???????????????????????????????????????????????? | | ???????????????????????????????????????????????? | | ???????????????????????????????????????????????? | | ???????????????????????????????????????????????? | | ???????????????????????????????????????????????? | | ???????????????????????????????????????????????? | | ???????????????????????????????????????????????? | | ???????????????????????????????????????????????? | | ???????????????????????????????????????????????? | | ???????????????????????????????????"???????????? | | ??????????????????????????????????? ???????????? | | ????????????????????????????????" ? ??????"????? | | ????????????????????????????###?" ????? """?? | | ??????????????????????????##"""#" """? ??? | | ??????????????????????????#""""""" """" ??? | | ?????????????????????##??##"""" """ """" ??? | | ??????????????????????"###"""" """"""" """? | | ??????????????????????#""""" """" """ """"? | | ??????????????????????" X"" """" """ """"? | | ??????????????????????# """ "" """" ""#" | | ?????????????????????## """ "#"" """" | | ?????????????????????" @z*=%= = """" """ | | ?????????????????????" l zz=[= "" "" | | ?????????????????????# zz"" " """" " | | ??????????????????""""""""""""#"""" "" | | ??????????????????"##""#""#"""#"#"" "" | | ????????????????????#######"""""""" """ | | ??????????????????????????"" " """ """ | | ??????????????????????????" "" """"" | | ???????????????????????????" """""" | | ????????????????????????????# """" | | ???????????????????????????????# """ | | ???????????????????????????????# """ = | | ???????????????????????????????#""" = * | | ????????????????????????????????#"" | | ????????????????????????????????#""== """ | | ????????????????????????????????#""=*]" """#" | | ????????????????????????????????##"" """"""" | | ????????????????????????????????##" "#" | | ????????????????????????????????#""" "" """ | | ????????????????????????????????## !/* "" """ | | ?????????????????????????????????#" = " """ | | ?????????????????????????????????##/ = | | ?????????????????????????????????#" % | | ?????????????????????????????????#" | | ???????????????????????????????####%=# ! ## | +----------------------------------------------------+ Best States ------------- Heat Dissipation 34 Energy Generation 18 Energy Capacity 290 Matter Stores 300 Matter Capacity 300 Sight Range 16 Robot Scan Range 14 Terrain Scan Density 10 Armor Coverage 225 Resistance: KI 50 Resistance: TH 20 Resistance: EX 20 Resistance: EM 20 Resistance: I 20 Resistance: S 20 Resistance: P 20 Evasion (%) 55 Launcher Accuracy 20 Offensive Hacking 10 Item Schematics ----------------- Imp. Shock Absorption System | -7/Zion | Archive Core Analyzer | -7/Zion | Archive Imp. Medium Treads | -7/Zion | Archive Force Field | -7/Zion | Archive Hvy. Missile Launcher | -7/Zion | Archive Adv. Melee Analysis Suite | -7/Zion | Archive Force Booster | -7/Zion | Archive Energy Well | -7/Zion | Archive Powered Hammer | -7/Zion | Archive Imp. Target Analyzer | -7/Zion | Archive Hvy. Pick | -7/Zion | Archive Imp. Thermal Shield | -7/Zion | Archive Great Axe | -7/Zion | Archive Coolant Injector | -7/Zion | Archive Robot Schematics ------------------ T-07 Excavator | -7/Zion | Archive R-06 Scavenger | -7/Zion | Archive W-25 Informer | -7/Zion | Archive Fabricated ------------ Nothing Repaired ---------- Nothing Studied --------- None Alien Tech Used ----------------- Core Expander Achievements -------------- Alien Tech Monster True Hacker YOLO Challenges ------------ None Game ------ Seed LightHelicalScanner Manual? 0 Play Time 01:00:48 Cumulative 23.4 hours Start 2026.02.18 @ 13:53:45 End 2026.02.18 @ 14:55:37 Sessions 1 Manual Loads 0 Difficulty Adventurer Special Mode None Game No. 25 Rogue 0 Adventurer 25 Explorer 0 Win Type - Total 0 Types 0/0/0/0/0/0/0/0/0/0 Lore% 10 Gallery% 26 Achievement% 23 Wizard Run 0 Options --------- Layout 0 ASCII 0 Keyboard 0 Movement Mouse Keybinds 0 Fullscreen 1 Font 18/SmallcapsGlow Map View 76x50 Zoom Use 0% Tactical HUD 1 Map Filters NONE Filters NONE Steam 1 RUN: 933cc7a0-bf48-45af-b27c-31379d4e57eb